fUSD/lending_fUSD_20250308
["ID","MTS","AMOUNT","RATE_DAILY","PERIOD"]
[355623576,1741402244150,-500.0,9.794e-05,2]
[355623577,1741402244159,-500.0,9.794e-05,2]
[355623578,1741402244168,-500.0,9.794e-05,2]
[355623579,1741402244177,-500.0,9.794e-05,2]
[355623580,1741402244187,-500.0,9.794e-05,2]
[355623581,1741402244196,-1634.79,9.794e-05,2]
[355623582,1741402244205,-4620.63,9.794e-05,2]
[355623583,1741402244215,-606.69,9.794e-05,2]
[355623584,1741402244224,-500.0,9.795e-05,2]
[355623585,1741402244233,-504.05153826,9.795e-05,2]
[355623586,1741402244242,-506.89450185,9.795e-05,2]
[355623587,1741402244251,-505.3481683,9.795e-05,2]
[355623588,1741402244260,-501.85755518,9.795e-05,2]
[355623589,1741402244270,-506.43918361,9.795e-05,2]
[355623590,1741402244279,-500.0,9.795e-05,2]
[355623591,1741402244288,-1285.41,9.795e-05,2]
[355623592,1741402244298,-503.25111445,9.795e-05,2]
[355623593,1741402244307,-505.36510091,9.795e-05,2]
[355623594,1741402244316,-1920.11,9.795e-05,2]
[355623595,1741402244326,-500.0,9.795e-05,2]
[355623596,1741402244335,-500.0,9.795e-05,2]
[355623597,1741402244344,-500.0,9.795e-05,2]
[355623598,1741402244354,-744.07,9.795e-05,2]
[355623599,1741402244363,-537.06924038,9.795e-05,2]
[355623600,1741402244372,-1664.31,9.795e-05,2]
[355623601,1741402244381,-500.0,9.795e-05,2]
[355623602,1741402244390,-382.48640733,9.795e-05,2]
[355623603,1741402244400,-500.0,9.795e-05,2]
[355623604,1741402244409,-500.0,9.795e-05,2]
[355623605,1741402244419,-2705.11,9.795e-05,2]
[355623606,1741402244428,-500.0,9.795e-05,2]
[355623607,1741402244438,-500.0,9.795e-05,2]
[355623608,1741402244447,-1838.95,9.795e-05,2]
[355623609,1741402244456,-504.55489255,9.795e-05,2]
[355623610,1741402244466,-500.0,9.795e-05,2]
[355623611,1741402244475,-505.23963418,9.795e-05,2]
[355623612,1741402244484,-2900.99,9.795e-05,2]
[355623613,1741402244493,-504.60613789,9.795e-05,2]
[355623614,1741402244503,-500.0,9.795e-05,2]
[355623615,1741402244512,-509.5085471,9.795e-05,2]
[355623616,1741402244522,-515.22546774,9.795e-05,2]
[355623617,1741402244531,-1536.17,9.795e-05,2]
[355623618,1741402244540,-1440.5,9.795e-05,2]
[355623619,1741402244550,-500.0,9.795e-05,2]
[355623620,1741402244559,-1498.03,9.795e-05,2]
[355623621,1741402244568,-2414.9,9.795e-05,2]
[355623622,1741402244578,-1342.81,9.795e-05,2]
[355623623,1741402244587,-1235.58,9.795e-05,2]
[355623624,1741402244597,-955.66,9.795e-05,2]
[355623625,1741402244607,-784.28,9.795e-05,2]
[355623626,1741402244617,-500.0,9.795e-05,2]
[355623627,1741402244626,-2129.7,9.795e-05,2]
[355623628,1741402244635,-500.0,9.795e-05,2]
[355623629,1741402244645,-1398.14,9.795e-05,2]
[355623630,1741402244654,-1708.9,9.795e-05,2]
[355623631,1741402244664,-720.51,9.795e-05,2]
[355623632,1741402244673,-515.46510523,9.795e-05,2]
[355623633,1741402244683,-1498.2,9.795e-05,2]
[355623634,1741402244692,-1187.89,9.795e-05,2]
[355623635,1741402244701,-488.77508717,9.795e-05,2]
[355623636,1741402244710,-972.44,9.795e-05,2]
[355623637,1741402244720,-2520.74,9.795e-05,2]
[355623638,1741402244730,-2765.08,9.795e-05,2]
[355623639,1741402244739,-500.0,9.795e-05,2]
[355623640,1741402244749,-1021.78,9.795e-05,2]
[355623641,1741402244759,-500.0,9.795e-05,2]
[355623642,1741402244770,-501.96105467,9.795e-05,2]
[355623643,1741402244780,-500.0,9.795e-05,2]
[355623644,1741402244789,-532.4124023,9.795e-05,2]
[355623645,1741402244799,-500.0,9.795e-05,2]
[355623646,1741402244809,-902.07,9.795e-05,2]
[355623647,1741402244818,-500.0,9.795e-05,2]
[355623648,1741402244828,-500.0,9.795e-05,2]
[355623649,1741402244837,-34.98053475,9.795e-05,2]
[355623650,1741402244852,-465.01946525,9.795e-05,2]
[355623651,1741402244862,-500.0,9.795e-05,2]
[355623652,1741402244871,-500.0,9.795e-05,2]
[355623653,1741402244880,-345.3540112,9.795e-05,2]
[355623654,1741402244890,-1365.14,9.795e-05,2]
[355623655,1741402244899,-416.26118167,9.795e-05,2]
[355623656,1741402244909,-1482.21,9.795e-05,2]
[355623657,1741402244918,-2786.43,9.795e-05,2]
[355623658,1741402244928,-1548.01,9.795e-05,2]
[355623659,1741402244937,-500.0,9.795e-05,2]
[355623660,1741402244947,-532.12,9.795e-05,2]
[355623661,1741402244956,-1137.67,9.795e-05,2]
[355623662,1741402244966,-500.0,9.795e-05,2]
[355623663,1741402244975,-500.0,9.795e-05,2]
[355623664,1741402244984,-1776.04,9.795e-05,2]
[355623665,1741402244994,-3403.71,9.795e-05,2]
[355623666,1741402245005,-500.0,9.795e-05,2]
[355623667,1741402245014,-500.0,9.795e-05,2]
[355623668,1741402245023,-778.25,9.795e-05,2]
[355623669,1741402245033,-2899.58,9.795e-05,2]
[355623670,1741402245044,-1303.57,9.795e-05,2]
[355623671,1741402245055,-3151.71,9.795e-05,2]
[355623672,1741402245064,-500.0,9.795e-05,2]
[355623673,1741402245074,-3399.94,9.795e-05,2]
[355623674,1741402245083,-2892.78,9.795e-05,2]
[355623675,1741402245093,-2181.72,9.795e-05,2]
[355623676,1741402245103,-500.0,9.795e-05,2]
[355623677,1741402245113,-500.0,9.795e-05,2]
[355623678,1741402245123,-1703.01,9.795e-05,2]
[355623679,1741402245132,-500.0,9.795e-05,2]
[355623680,1741402245141,-500.0,9.795e-05,2]
[355623681,1741402245151,-1149.49,9.795e-05,2]
[355623682,1741402245161,-13608.64,9.795e-05,2]
[355623684,1741402245170,-500.0,9.795e-05,2]
[355623686,1741402245179,-5558.22,9.795e-05,2]
[355623688,1741402245189,-763.18,9.795e-05,2]
[355623690,1741402245198,-2935.76,9.795e-05,2]
[355623692,1741402245207,-3234.61,9.795e-05,2]
[355623694,1741402245216,-500.0,9.795e-05,2]
[355623696,1741402245226,-7517.78,9.795e-05,2]
[355623698,1741402245235,-500.0,9.795e-05,2]
[355623700,1741402245245,-500.0,9.795e-05,2]
[355623702,1741402245254,-500.0,9.795e-05,2]
[355623704,1741402245264,-5035.92,9.795e-05,2]
[355623705,1741402245273,-1062.86,9.795e-05,2]
[355623706,1741402245283,-5146.03,9.795e-05,2]
[355623707,1741402245292,-500.0,9.795e-05,2]
[355623708,1741402245302,-4599.49,9.795e-05,2]
[355623709,1741402245313,-1365.32,9.795e-05,2]
[355623711,1741402245322,-5179.1,9.795e-05,2]
[355623714,1741402245332,-935.51,9.795e-05,2]
[355623715,1741402245341,-692.67,9.795e-05,2]
[355623716,1741402245350,-500.0,9.795e-05,2]
[355623717,1741402245360,-1309.69,9.795e-05,2]
[355623718,1741402245369,-912.12,9.795e-05,2]
[355623719,1741402245378,-4735.55,9.795e-05,2]
[355623720,1741402245387,-6252.57,9.795e-05,2]
[355623721,1741402245397,-6068.79,9.795e-05,2]
[355623722,1741402245406,-536.29323869,9.795e-05,2]
[355623723,1741402245416,-2761.96,9.795e-05,2]
[355623724,1741402245425,-500.0,9.795e-05,2]
[355623725,1741402245435,-16300.3,9.795e-05,2]
[355623726,1741402245444,-8322.21,9.795e-05,2]
[355623727,1741402245453,-500.0,9.795e-05,2]
[355623728,1741402245462,-1374.0,9.795e-05,2]
[355623729,1741402245471,-500.0,9.795e-05,2]
[355623730,1741402245480,-2048.82,9.795e-05,2]
[355623731,1741402245489,-15698.99,9.795e-05,2]
[355623732,1741402245498,-4180.45,9.795e-05,2]
[355623733,1741402245507,-1790.25,9.795e-05,2]
[355623734,1741402245516,-1079.01,9.795e-05,2]
[355623735,1741402245526,-1003.59,9.795e-05,2]
[355623736,1741402245535,-500.0,9.795e-05,2]
[355623737,1741402245544,-1867.53,9.795e-05,2]
[355623738,1741402245554,-7330.19,9.795e-05,2]
[355623739,1741402245563,-500.0,9.795e-05,2]
[355623740,1741402245572,-2613.07,9.795e-05,2]
[355623741,1741402245581,-1204.97,9.795e-05,2]
[355623742,1741402245591,-3633.17,9.795e-05,2]
[355623743,1741402245600,-379.6302627,9.795e-05,2]
[355623744,1741402245610,-6008.79,9.795e-05,2]
[355623745,1741402245618,-500.0,9.795e-05,2]
[355623746,1741402245627,-5134.63,9.795e-05,2]
[355623747,1741402245637,-2410.88,9.795e-05,2]
[355623748,1741402245646,-3596.25,9.795e-05,2]
[355623749,1741402245655,-3752.3,9.795e-05,2]
[355623750,1741402245664,-827.07,9.795e-05,2]
[355623751,1741402245676,-5738.77,9.795e-05,2]
[355623752,1741402245686,-500.0,9.795e-05,2]
[355623753,1741402245695,-4324.88,9.795e-05,2]
[355623754,1741402245705,-953.01,9.795e-05,2]
[355623755,1741402245715,-7504.69,9.795e-05,2]
[355623756,1741402245724,-500.0,9.795e-05,2]
[355623758,1741402245733,-5980.36,9.795e-05,2]
[355623760,1741402245743,-500.0,9.795e-05,2]
[355623761,1741402245754,-3844.8,9.795e-05,2]
[355623762,1741402245764,-500.0,9.795e-05,2]
[355623763,1741402245780,-1960.64,9.795e-05,2]
[355623764,1741402245796,-3706.76,9.795e-05,2]
[355623765,1741402245807,-8715.59,9.795e-05,2]
[355623766,1741402245823,-500.0,9.795e-05,2]
[355623767,1741402245833,-500.0,9.795e-05,2]
[355623768,1741402245842,-500.0,9.795e-05,2]
[355623769,1741402245856,-4117.54,9.795e-05,2]
[355623770,1741402245866,-2089.62,9.795e-05,2]
[355623771,1741402245875,-500.0,9.795e-05,2]
[355623772,1741402245885,-15372.75,9.795e-05,2]
[355623773,1741402245895,-501.14789649,9.795e-05,2]
[355623775,1741402245905,-501.41777381,9.795e-05,2]
[355623776,1741402245915,-2711.12,9.795e-05,2]
[355623777,1741402245933,-4125.37,9.795e-05,2]
[355623778,1741402245943,-503.0,9.795e-05,2]
[355623780,1741402245952,-500.0,9.795e-05,2]
[355623781,1741402245961,-500.0,9.795e-05,2]
[355623782,1741402245971,-5323.67,9.795e-05,2]
[355623783,1741402245980,-3114.6,9.795e-05,2]
[355623784,1741402245989,-6021.11,9.795e-05,2]
[355623785,1741402245999,-500.0,9.795e-05,2]
[355623786,1741402246008,-500.0,9.795e-05,2]
[355623787,1741402246018,-500.0,9.795e-05,2]
[355623788,1741402246027,-500.0,9.795e-05,2]
[355623789,1741402246036,-12720.38,9.795e-05,2]
[355623790,1741402246046,-500.0,9.795e-05,2]
[355623791,1741402246055,-27567.69,9.795e-05,2]
[355623792,1741402246065,-501.37161038,9.795e-05,2]
[355623793,1741402246074,-500.0,9.795e-05,2]
[355623794,1741402246083,-9034.45,9.795e-05,2]
[355623795,1741402246093,-500.0,9.795e-05,2]
[355623796,1741402246102,-500.0,9.795e-05,2]
[355623797,1741402246112,-500.0,9.795e-05,2]
[355623798,1741402246121,-2216.23,9.795e-05,2]
[355623799,1741402246130,-3413.4,9.795e-05,2]
[355623800,1741402246140,-4047.40061235,9.795e-05,2]
[355623801,1741402246173,-348.1657617,9.795e-05,2]
[355623802,1741402246184,-500.0,9.795e-05,2]
[355623803,1741402246222,-50892.37362595,9.795e-05,2]
[355623804,1741402246231,-502.35124271,9.795e-05,2]
[355623805,1741402246240,-500.0,9.795e-05,2]
[355623806,1741402246250,-6988.04,9.795e-05,2]
[355623807,1741402246259,-3404.36,9.795e-05,2]
[355623808,1741402246268,-500.0,9.795e-05,2]
[355623809,1741402246278,-5004.68,9.795e-05,2]
[355623810,1741402246287,-2138.94,9.795e-05,2]
[355623811,1741402246297,-1719.15,9.795e-05,2]
[355623812,1741402246306,-500.0,9.795e-05,2]
[355623813,1741402246316,-500.0,9.795e-05,2]
[355623814,1741402246325,-4714.95,9.795e-05,2]
[355623815,1741402246334,-3285.89,9.795e-05,2]
[355623816,1741402246343,-1434.11,9.795e-05,2]
[355623817,1741402246352,-500.0,9.795e-05,2]
[355623818,1741402246362,-18999.56,9.795e-05,2]
[355623819,1741402246370,-500.0,9.795e-05,2]
[355623820,1741402246379,-500.0,9.795e-05,2]
[355623821,1741402246389,-1155.43,9.795e-05,2]
[355623822,1741402246399,-1631.57,9.795e-05,2]
[355623823,1741402246408,-2448.59,9.795e-05,2]
[355623824,1741402246418,-3533.4,9.795e-05,2]
[355623825,1741402246427,-500.0,9.795e-05,2]
[355623826,1741402246437,-1558.88669398,9.795e-05,2]
[355623827,1741402247434,-500.0,9.794e-05,2]
[355623828,1741402247444,-500.0,9.794e-05,2]
[355623829,1741402247453,-10042.99330602,9.795e-05,2]
[355623830,1741402247462,-5990.09,9.795e-05,2]
[355623831,1741402247471,-500.0,9.795e-05,2]
[355623832,1741402247480,-12919.78,9.795e-05,2]
[355623833,1741402247490,-500.0,9.796e-05,2]
[355623834,1741402247499,-1241.29,9.796e-05,2]
[355623835,1741402247508,-500.0,9.796e-05,2]
[355623836,1741402247517,-500.0,9.796e-05,2]
[355623837,1741402247527,-512.4600353,9.796e-05,2]
[355623838,1741402247535,-500.0,9.796e-05,2]
[355623839,1741402247545,-500.0,9.796e-05,2]
[355623840,1741402247555,-500.0,9.796e-05,2]
[355623841,1741402247564,-500.0,9.796e-05,2]
[355623842,1741402247574,-1019.52,9.796e-05,2]
[355623843,1741402247584,-500.0,9.796e-05,2]
[355623844,1741402247593,-503.57018065,9.796e-05,2]
[355623845,1741402247603,-500.0,9.796e-05,2]
[355623846,1741402247612,-500.0,9.796e-05,2]
[355623847,1741402247622,-500.0,9.796e-05,2]
[355623848,1741402247631,-633.45,9.796e-05,2]
[355623849,1741402247640,-500.0,9.796e-05,2]
[355623850,1741402247651,-1768.14,9.796e-05,2]
[355623851,1741402247660,-503.23435443,9.796e-05,2]
[355623852,1741402247670,-664.46,9.796e-05,2]
[355623853,1741402247679,-500.79,9.796e-05,2]
[355623854,1741402247689,-500.0,9.796e-05,2]
[355623855,1741402247698,-1545.11,9.796e-05,2]
[355623856,1741402247708,-2105.72,9.796e-05,2]
[355623857,1741402247717,-500.0,9.796e-05,2]
[355623858,1741402247727,-1379.34,9.796e-05,2]
[355623859,1741402247736,-500.0,9.796e-05,2]
[355623860,1741402247747,-500.0,9.796e-05,2]
[355623861,1741402247756,-920.47,9.796e-05,2]
[355623862,1741402247767,-500.0,9.796e-05,2]
[355623863,1741402247778,-640.53,9.796e-05,2]
[355623864,1741402247787,-2064.62,9.796e-05,2]
[355623865,1741402247797,-2813.25,9.796e-05,2]
[355623866,1741402247808,-500.0,9.796e-05,2]
[355623867,1741402247817,-1042.97,9.796e-05,2]
[355623868,1741402247826,-500.0,9.796e-05,2]
[355623869,1741402247836,-500.0,9.796e-05,2]
[355623870,1741402247845,-1977.21,9.796e-05,2]
[355623871,1741402247855,-1927.94,9.796e-05,2]
[355623872,1741402247865,-698.39,9.796e-05,2]
[355623873,1741402247875,-1267.54,9.796e-05,2]
[355623874,1741402247884,-1286.38,9.796e-05,2]
[355623875,1741402247893,-926.89,9.796e-05,2]
[355623876,1741402247902,-871.98,9.796e-05,2]
[355623877,1741402247911,-1060.75,9.796e-05,2]
[355623878,1741402247921,-530.64193696,9.796e-05,2]
[355623902,1741403365199,-1268.07,8.219e-05,2]
[355623903,1741403403416,1214.14571281,0.00020111,120]
[355623907,1741403431701,-156.08,8.909e-05,2]
[355623908,1741403431711,-460.84,8.909e-05,2]
[355623909,1741403431721,-148.37,8.928e-05,2]
[355623910,1741403431754,-101.63,8.928e-05,2]
[355623911,1741403431764,-204.3354542,9.027e-05,2]
[355623912,1741403431778,-795.6645458,9.027e-05,2]
[355623913,1741403431789,-1012.0,9.6e-05,2]
[355623914,1741403431800,-1350.328,9.693e-05,2]
[355623915,1741403431810,-300.0,9.693e-05,2]
[355623916,1741403431819,-711.83414569,9.694e-05,2]
[355623917,1741403431914,-439.83347109,9.694e-05,2]
[355623929,1741403437540,-739.29319701,9.694e-05,2]
[355623930,1741403437551,-1025.56835964,9.694e-05,2]
[355623931,1741403437597,-324.845,9.694e-05,2]
[355623932,1741403437699,-463.12378023,9.694e-05,2]
[355623937,1741403439591,-400.11214634,9.694e-05,2]
[355623938,1741403439601,-727.72916269,9.694e-05,2]
[355623939,1741403439693,-1904.37873731,9.694e-05,2]
[355623940,1741403439703,-150.0,9.791e-05,2]
[355623941,1741403439712,-1701.81,9.791e-05,2]
[355623942,1741403439721,-581.41,9.792e-05,2]
[355623943,1741403439730,-4931.61,9.792e-05,2]
[355623944,1741403439740,-4538.24,9.792e-05,2]
[355623945,1741403439749,-1633.55,9.792e-05,2]
[355623946,1741403439758,-5992.04,9.792e-05,2]
[355623947,1741403439769,-15621.13,9.792e-05,2]
[355623948,1741403439779,-4006.26,9.792e-05,2]
[355623949,1741403439790,-1789.72,9.792e-05,2]
[355623950,1741403439800,-5758.42,9.792e-05,2]
[355623951,1741403439811,-7024.77,9.792e-05,2]
[355623952,1741403439821,-4552.7,9.792e-05,2]
[355623953,1741403439831,-5499.65,9.792e-05,2]
[355623954,1741403439841,-3200.86,9.792e-05,2]
[355623955,1741403439850,-3595.96,9.792e-05,2]
[355623956,1741403439860,-3990.3,9.792e-05,2]
[355623957,1741403439870,-2876.41,9.792e-05,2]
[355623958,1741403439879,-7191.99,9.792e-05,2]
[355623959,1741403439888,-3552.31,9.792e-05,2]
[355623960,1741403439897,-6621.93,9.792e-05,2]
[355623961,1741403439907,-5166.68,9.792e-05,2]
[355623962,1741403439916,-5731.18,9.792e-05,2]
[355623963,1741403439925,-500.0,9.792e-05,2]
[355623964,1741403439934,-8352.44,9.792e-05,2]
[355623965,1741403439943,-5272.29,9.792e-05,2]
[355623966,1741403439952,-14732.22,9.792e-05,2]
[355623967,1741403439962,-500.0,9.792e-05,2]
[355623968,1741403439971,-500.0,9.792e-05,2]
[355623969,1741403439980,-1741.55,9.792e-05,2]
[355623970,1741403439989,-500.0,9.792e-05,2]
[355623971,1741403439998,-3808.08,9.792e-05,2]
[355623972,1741403440008,-500.0,9.792e-05,2]
[355623973,1741403440017,-26419.03,9.792e-05,2]
[355623974,1741403440027,-3114.65,9.792e-05,2]
[355623975,1741403440036,-1596.37,9.792e-05,2]
[355623976,1741403440046,-978.14,9.792e-05,2]
[355623977,1741403440055,-4715.83,9.792e-05,2]
[355623978,1741403440064,-6272.25,9.792e-05,2]
[355623979,1741403440074,-2831.86,9.792e-05,2]
[355623980,1741403440085,-31201.74,9.792e-05,2]
[355623981,1741403440094,-4796.15,9.792e-05,2]
[355623982,1741403440103,-500.0,9.792e-05,2]
[355623983,1741403440113,-5661.19,9.792e-05,2]
[355623984,1741403440122,-3186.19,9.792e-05,2]
[355623985,1741403440132,-1647.52,9.792e-05,2]
[355623986,1741403440145,-1751.76,9.792e-05,2]
[355623987,1741403440154,-3810.15,9.792e-05,2]
[355623988,1741403440164,-1874.83,9.792e-05,2]
[355623989,1741403440173,-500.0,9.792e-05,2]
[355623990,1741403440183,-4518.49,9.792e-05,2]
[355623991,1741403440193,-1121.07,9.792e-05,2]
[355623992,1741403440204,-1493.5,9.792e-05,2]
[355623993,1741403440213,-2232.26,9.792e-05,2]
[355623994,1741403440223,-11118.47,9.792e-05,2]
[355623995,1741403440233,-2718.28,9.792e-05,2]
[355623996,1741403440242,-18525.34,9.792e-05,2]
[355623997,1741403440252,-3386.18,9.792e-05,2]
[355623998,1741403440261,-2193.92,9.792e-05,2]
[355623999,1741403440271,-2528.53,9.792e-05,2]
[355624000,1741403440280,-1875.62,9.792e-05,2]
[355624001,1741403440289,-4127.15,9.792e-05,2]
[355624002,1741403440299,-3736.68,9.792e-05,2]
[355624003,1741403440308,-4428.11,9.792e-05,2]
[355624004,1741403440317,-500.0,9.792e-05,2]
[355624005,1741403440326,-500.0,9.792e-05,2]
[355624006,1741403440335,-270.32764181,9.792e-05,2]
[355624007,1741403440344,-150.0,9.792e-05,2]
[355624008,1741403440353,-500.0,9.793e-05,2]
[355624009,1741403440363,-682.88,9.793e-05,2]
[355624010,1741403440374,-500.0,9.793e-05,2]
[355624011,1741403440384,-500.0,9.793e-05,2]
[355624012,1741403440393,-518.93751958,9.793e-05,2]
[355624013,1741403440402,-1314.63,9.793e-05,2]
[355624014,1741403440412,-500.0,9.793e-05,2]
[355624015,1741403440421,-500.0,9.793e-05,2]
[355624016,1741403440430,-1231.86,9.793e-05,2]
[355624017,1741403440439,-500.0,9.793e-05,2]
[355624018,1741403440448,-500.0,9.793e-05,2]
[355624019,1741403440457,-500.0,9.793e-05,2]
[355624020,1741403440467,-500.0,9.793e-05,2]
[355624021,1741403440476,-500.0,9.793e-05,2]
[355624022,1741403440485,-526.04494631,9.793e-05,2]
[355624023,1741403440495,-834.76,9.793e-05,2]
[355624024,1741403440504,-500.0,9.793e-05,2]
[355624025,1741403440513,-1840.11,9.793e-05,2]
[355624026,1741403440522,-1159.78,9.793e-05,2]
[355624027,1741403440531,-1982.81,9.793e-05,2]
[355624028,1741403440540,-500.0,9.793e-05,2]
[355624029,1741403440549,-713.07,9.793e-05,2]
[355624030,1741403440558,-500.0,9.793e-05,2]
[355624031,1741403440568,-500.0,9.793e-05,2]
[355624032,1741403440577,-500.0,9.793e-05,2]
[355624033,1741403440587,-500.0,9.793e-05,2]
[355624034,1741403440595,-500.0,9.793e-05,2]
[355624035,1741403440605,-505.86279504,9.793e-05,2]
[355624036,1741403440614,-500.0,9.793e-05,2]
[355624037,1741403440623,-1594.97,9.793e-05,2]
[355624038,1741403440631,-500.0,9.793e-05,2]
[355624039,1741403440639,-500.0,9.793e-05,2]
[355624040,1741403440647,-500.0,9.793e-05,2]
[355624041,1741403440656,-1150.01,9.793e-05,2]
[355624042,1741403440665,-908.11,9.793e-05,2]
[355624043,1741403440675,-1762.33,9.793e-05,2]
[355624044,1741403440684,-500.0,9.793e-05,2]
[355624045,1741403440694,-500.0,9.793e-05,2]
[355624046,1741403440704,-500.0,9.793e-05,2]
[355624047,1741403440714,-500.0,9.793e-05,2]
[355624048,1741403440723,-500.0,9.793e-05,2]
[355624049,1741403440732,-2780.11,9.793e-05,2]
[355624050,1741403440741,-500.0,9.793e-05,2]
[355624051,1741403440750,-1099.14,9.793e-05,2]
[355624052,1741403440759,-211.38904055,9.793e-05,2]
[355624053,1741403440769,-1472.16,9.793e-05,2]
[355624054,1741403440779,-500.0,9.793e-05,2]
[355624055,1741403440788,-621.85,9.793e-05,2]
[355624056,1741403440797,-500.0,9.793e-05,2]
[355624057,1741403440807,-500.0,9.793e-05,2]
[355624058,1741403440816,-500.0,9.793e-05,2]
[355624059,1741403440825,-448.28817784,9.793e-05,2]
[355624060,1741403440836,-500.0,9.793e-05,2]
[355624061,1741403440844,-500.0,9.793e-05,2]
[355624062,1741403440854,-1435.61,9.793e-05,2]
[355624063,1741403440863,-500.0,9.793e-05,2]
[355624064,1741403440873,-500.0,9.793e-05,2]
[355624065,1741403440884,-500.0,9.793e-05,2]
[355624066,1741403440896,-500.0,9.793e-05,2]
[355624067,1741403440906,-1380.48,9.793e-05,2]
[355624068,1741403440916,-1286.86,9.793e-05,2]
[355624069,1741403440925,-500.0,9.793e-05,2]
[355624070,1741403440935,-500.0,9.793e-05,2]
[355624071,1741403440944,-1351.65,9.793e-05,2]
[355624072,1741403440954,-2314.28,9.793e-05,2]
[355624073,1741403440963,-1598.48,9.793e-05,2]
[355624074,1741403440973,-500.0,9.793e-05,2]
[355624075,1741403440983,-500.0,9.793e-05,2]
[355624076,1741403440993,-1164.87,9.793e-05,2]
[355624077,1741403441002,-500.0,9.793e-05,2]
[355624078,1741403441012,-500.0,9.793e-05,2]
[355624079,1741403441022,-1184.09,9.793e-05,2]
[355624080,1741403441031,-500.0,9.793e-05,2]
[355624081,1741403441041,-500.0,9.793e-05,2]
[355624082,1741403441050,-500.0,9.793e-05,2]
[355624083,1741403441060,-2040.97,9.793e-05,2]
[355624084,1741403441069,-500.0,9.793e-05,2]
[355624085,1741403441078,-500.0,9.793e-05,2]
[355624086,1741403441088,-751.6,9.793e-05,2]
[355624087,1741403441098,-500.0,9.793e-05,2]
[355624088,1741403441107,-1339.88,9.793e-05,2]
[355624089,1741403441117,-500.0,9.793e-05,2]
[355624090,1741403441126,-500.0,9.793e-05,2]
[355624091,1741403441135,-500.0,9.793e-05,2]
[355624092,1741403441145,-500.0,9.793e-05,2]
[355624093,1741403441158,-500.0,9.793e-05,2]
[355624094,1741403441167,-315.40142881,9.793e-05,2]
[355624095,1741403441176,-690.49,9.793e-05,2]
[355624096,1741403441194,-500.0,9.793e-05,2]
[355624097,1741403441203,-500.0,9.793e-05,2]
[355624098,1741403441213,-500.0,9.793e-05,2]
[355624099,1741403441222,-1439.13,9.793e-05,2]
[355624100,1741403441232,-500.0,9.793e-05,2]
[355624101,1741403441241,-500.0,9.793e-05,2]
[355624102,1741403441250,-500.0,9.793e-05,2]
[355624103,1741403441259,-2143.54,9.793e-05,2]
[355624104,1741403441268,-500.0,9.793e-05,2]
[355624105,1741403441278,-502.29359353,9.793e-05,2]
[355624106,1741403441288,-500.0,9.793e-05,2]
[355624107,1741403441297,-1637.7,9.793e-05,2]
[355624108,1741403441307,-500.0,9.793e-05,2]
[355624109,1741403441315,-500.0,9.793e-05,2]
[355624110,1741403441325,-500.0,9.793e-05,2]
[355624111,1741403441335,-1503.06,9.793e-05,2]
[355624112,1741403441344,-2415.71,9.793e-05,2]
[355624113,1741403441354,-500.0,9.793e-05,2]
[355624114,1741403441363,-500.0,9.793e-05,2]
[355624115,1741403441373,-500.0,9.793e-05,2]
[355624116,1741403441382,-500.0,9.793e-05,2]
[355624117,1741403441391,-1435.77,9.793e-05,2]
[355624118,1741403441401,-500.0,9.793e-05,2]
[355624119,1741403441410,-824.43,9.793e-05,2]
[355624120,1741403441420,-500.0,9.793e-05,2]
[355624121,1741403441429,-500.0,9.793e-05,2]
[355624122,1741403441438,-931.92,9.793e-05,2]
[355624123,1741403441447,-500.0,9.793e-05,2]
[355624124,1741403441456,-500.0,9.793e-05,2]
[355624125,1741403441465,-500.0,9.793e-05,2]
[355624126,1741403441475,-502.4882899,9.793e-05,2]
[355624127,1741403441485,-500.0,9.793e-05,2]
[355624128,1741403441495,-500.0,9.793e-05,2]
[355624129,1741403441505,-568.0,9.793e-05,2]
[355624130,1741403441514,-2649.87,9.793e-05,2]
[355624131,1741403441525,-500.0,9.793e-05,2]
[355624132,1741403441535,-500.0,9.793e-05,2]
[355624133,1741403441546,-500.0,9.793e-05,2]
[355624134,1741403441555,-1001.95,9.793e-05,2]